[Event "*** SCC Grand Prix: Titled Tuesday Blitz"]
[Site "Chess.com"]
[Date "2020.06.02"]
[Round "5"]
[White "MarceloPlaya"]
[Black "2008king"]
[Result "0-1"]
[WhiteElo "2282"]
[BlackElo "2117"]
[TimeControl "180+1"]
[EndTime "10:57:22 PDT"]
[Termination "2008king won by resignation"]

1. e4 {[%clk 0:03:00.9]} 1... e5 {[%clk 0:02:59.4]} 2. Nf3 {[%clk 0:02:59.9]}
2... Nc6 {[%clk 0:02:59.2]} 3. d4 {[%clk 0:02:59.3]} 3... exd4 {[%clk
0:02:54.9]} 4. Bc4 {[%clk 0:02:59.1]} 4... Nf6 {[%clk 0:02:42.8]} 5. Ng5 {[%clk
0:02:56.7]} 5... Ne5 {[%clk 0:02:42.3]} 6. Qxd4 {[%clk 0:02:55.3]} 6... d6
{[%clk 0:02:34.7]} 7. Bb3 {[%clk 0:02:50.3]} 7... h6 {[%clk 0:02:30.7]} 8. f4
{[%clk 0:02:49.5]} 8... hxg5 {[%clk 0:02:11]} 9. fxe5 {[%clk 0:02:48.8]} 9...
Ng4 {[%clk 0:02:04.1]} 10. O-O {[%clk 0:02:26.7]} 10... Nxe5 {[%clk 0:01:52.8]}
11. Nd2 {[%clk 0:02:20.3]} 11... Bg4 {[%clk 0:01:46.8]} 12. Nc4 {[%clk
0:02:18.5]} 12... f6 {[%clk 0:01:15.4]} 13. Nxe5 {[%clk 0:02:14.2]} 13... dxe5
{[%clk 0:01:16.3]} 14. Qf2 {[%clk 0:01:54.9]} 14... Qd7 {[%clk 0:01:01.2]} 15.
Be3 {[%clk 0:01:53.9]} 15... Bd6 {[%clk 0:00:56.9]} 16. c4 {[%clk 0:01:41.4]}
16... a6 {[%clk 0:00:47.7]} 17. c5 {[%clk 0:01:38.5]} 17... Be7 {[%clk
0:00:47.5]} 18. Rac1 {[%clk 0:01:35.8]} 18... c6 {[%clk 0:00:43.4]} 19. Bxg5
{[%clk 0:01:20.2]} 19... fxg5 {[%clk 0:00:38.9]} 20. Qf7+ {[%clk 0:01:19]} 20...
Kd8 {[%clk 0:00:39.4]} 21. Rcd1 {[%clk 0:01:11.4]} 21... Bxd1 {[%clk 0:00:38.3]}
22. Rxd1 {[%clk 0:01:10.7]} 22... Qxd1+ {[%clk 0:00:34.1]} 23. Bxd1 {[%clk
0:01:09.4]} 23... Bxc5+ {[%clk 0:00:32.4]} 24. Kh1 {[%clk 0:01:02.5]} 24... Rf8
{[%clk 0:00:32.7]} 25. Qc4 {[%clk 0:01:00.2]} 25... b5 {[%clk 0:00:29.1]} 26.
Qd3+ {[%clk 0:00:52.4]} 26... Kc7 {[%clk 0:00:28.3]} 27. g3 {[%clk 0:00:45.9]}
27... Rad8 {[%clk 0:00:28.1]} 28. Qc2 {[%clk 0:00:45.3]} 28... Rf1+ {[%clk
0:00:27.4]} 29. Kg2 {[%clk 0:00:44.1]} 29... Rf2+ {[%clk 0:00:27.8]} 0-1

[Event "*** SCC Grand Prix: Titled Tuesday Blitz"]
[Site "Chess.com"]
[Date "2020.06.02"]
[Round "5"]
[White "gmcorrales"]
[Black "verdest"]
[Result "1-0"]
[WhiteElo "2766"]
[BlackElo "2584"]
[TimeControl "180+1"]
[EndTime "10:57:23 PDT"]
[Termination "gmcorrales won by resignation"]

1. e4 {[%clk 0:02:57.3]} 1... c5 {[%clk 0:02:58.7]} 2. Nf3 {[%clk 0:02:43.4]}
2... Nc6 {[%clk 0:02:57.9]} 3. d4 {[%clk 0:02:43.4]} 3... cxd4 {[%clk
0:02:58.8]} 4. Nxd4 {[%clk 0:02:44.3]} 4... Nf6 {[%clk 0:02:57.8]} 5. Nc3 {[%clk
0:02:44.4]} 5... e5 {[%clk 0:02:57.6]} 6. Ndb5 {[%clk 0:02:43.9]} 6... d6 {[%clk
0:02:56.1]} 7. Bg5 {[%clk 0:02:42.5]} 7... a6 {[%clk 0:02:53.9]} 8. Bxf6 {[%clk
0:02:40.8]} 8... gxf6 {[%clk 0:02:52.8]} 9. Na3 {[%clk 0:02:41.7]} 9... b5
{[%clk 0:02:52.4]} 10. Nd5 {[%clk 0:02:41.5]} 10... Bg7 {[%clk 0:02:49.5]} 11.
Bd3 {[%clk 0:02:38.8]} 11... Ne7 {[%clk 0:02:49.1]} 12. Nxe7 {[%clk 0:02:38.1]}
12... Qxe7 {[%clk 0:02:50]} 13. O-O {[%clk 0:02:39]} 13... O-O {[%clk
0:02:47.6]} 14. c4 {[%clk 0:02:37.3]} 14... f5 {[%clk 0:02:47.2]} 15. Qf3 {[%clk
0:02:31.9]} 15... d5 {[%clk 0:02:44.6]} 16. cxd5 {[%clk 0:02:28.2]} 16... fxe4
{[%clk 0:02:13.9]} 17. Bxe4 {[%clk 0:02:21.8]} 17... Qd6 {[%clk 0:02:11.2]} 18.
g4 {[%clk 0:01:37.3]} 18... Kh8 {[%clk 0:01:02.1]} 19. Nc2 {[%clk 0:01:36.5]}
19... f5 {[%clk 0:00:49.9]} 20. gxf5 {[%clk 0:01:36.6]} 20... Bh6 {[%clk
0:00:48.6]} 21. Kh1 {[%clk 0:01:30.7]} 21... Bf4 {[%clk 0:00:46.4]} 22. Ne3
{[%clk 0:01:30.8]} 22... Bd7 {[%clk 0:00:42.6]} 23. Rg1 {[%clk 0:01:30]} 23...
Rg8 {[%clk 0:00:40.1]} 24. Rxg8+ {[%clk 0:01:23.5]} 24... Rxg8 {[%clk 0:00:41]}
25. Rg1 {[%clk 0:01:23.5]} 25... Rc8 {[%clk 0:00:32.6]} 26. Qh5 {[%clk
0:01:18.9]} 26... Be8 {[%clk 0:00:24.1]} 27. Qg4 {[%clk 0:01:16.7]} 27... Qf8
{[%clk 0:00:18.4]} 28. f6 {[%clk 0:01:17.1]} 1-0

[Event "*** SCC Grand Prix: Titled Tuesday Blitz"]
[Site "Chess.com"]
[Date "2020.06.02"]
[Round "5"]
[White "Mizner"]
[Black "AndrewDGreen"]
[Result "0-1"]
[WhiteElo "2480"]
[BlackElo "2333"]
[TimeControl "180+1"]
[EndTime "10:57:23 PDT"]
[Termination "AndrewDGreen won by checkmate"]

1. d4 {[%clk 0:03:00.9]} 1... Nf6 {[%clk 0:02:59.5]} 2. c4 {[%clk 0:03:00.8]}
2... g6 {[%clk 0:02:59.8]} 3. g3 {[%clk 0:02:59.6]} 3... Bg7 {[%clk 0:02:59.9]}
4. Bg2 {[%clk 0:02:59.7]} 4... d6 {[%clk 0:03:00.5]} 5. Nc3 {[%clk 0:02:58.9]}
5... c6 {[%clk 0:03:00.1]} 6. Nf3 {[%clk 0:02:59]} 6... O-O {[%clk 0:02:59.6]}
7. O-O {[%clk 0:02:59]} 7... Bf5 {[%clk 0:03:00]} 8. Ne1 {[%clk 0:02:56.3]} 8...
Be6 {[%clk 0:02:59.3]} 9. b3 {[%clk 0:02:53.2]} 9... a5 {[%clk 0:02:48.4]} 10.
Nd3 {[%clk 0:02:44.8]} 10... Qd7 {[%clk 0:02:43.5]} 11. Nf4 {[%clk 0:02:41.2]}
11... Na6 {[%clk 0:02:33.5]} 12. Bb2 {[%clk 0:02:34]} 12... Rab8 {[%clk
0:02:15.1]} 13. Qd2 {[%clk 0:02:28.1]} 13... b5 {[%clk 0:02:09.4]} 14. cxb5
{[%clk 0:02:26]} 14... cxb5 {[%clk 0:02:08.7]} 15. d5 {[%clk 0:02:26.5]} 15...
Bf5 {[%clk 0:02:05]} 16. e4 {[%clk 0:02:26.4]} 16... b4 {[%clk 0:02:05.3]} 17.
exf5 {[%clk 0:02:20.6]} 17... bxc3 {[%clk 0:02:05.2]} 18. Bxc3 {[%clk
0:02:20.7]} 18... Qxf5 {[%clk 0:02:01.1]} 19. Bxa5 {[%clk 0:02:10.9]} 19... g5
{[%clk 0:01:13.4]} 20. Ne2 {[%clk 0:02:08.7]} 20... Nc5 {[%clk 0:01:01.5]} 21.
Rad1 {[%clk 0:01:56.2]} 21... Nce4 {[%clk 0:00:45.6]} 22. Qe3 {[%clk 0:01:50.1]}
22... Ra8 {[%clk 0:00:35.6]} 23. b4 {[%clk 0:01:47.8]} 23... Rfc8 {[%clk
0:00:32.8]} 24. f3 {[%clk 0:01:40.7]} 24... Nxd5 {[%clk 0:00:11.2]} 25. fxe4
{[%clk 0:01:26.1]} 25... Qxf1+ {[%clk 0:00:09.6]} 26. Rxf1 {[%clk 0:01:20.9]}
26... Nxe3 {[%clk 0:00:09.6]} 27. Rb1 {[%clk 0:01:13.2]} 27... Nxg2 {[%clk
0:00:10]} 28. Kxg2 {[%clk 0:01:14.1]} 28... Rc2 {[%clk 0:00:10.3]} 29. Kf3
{[%clk 0:01:14.2]} 29... g4+ {[%clk 0:00:10.7]} 30. Ke3 {[%clk 0:01:13.8]} 30...
Bh6+ {[%clk 0:00:10.4]} 31. Nf4 {[%clk 0:01:10.3]} 31... e5 {[%clk 0:00:10.2]}
32. Kd3 {[%clk 0:01:10.7]} 32... Rac8 {[%clk 0:00:07.7]} 33. Nd5 {[%clk
0:01:10]} 33... Rd2# {[%clk 0:00:07.8]} 0-1

[Event "*** SCC Grand Prix: Titled Tuesday Blitz"]
[Site "Chess.com"]
[Date "2020.06.02"]
[Round "5"]
[White "lukas_111111"]
[Black "Dmitry_M1"]
[Result "1/2-1/2"]
[WhiteElo "2530"]
[BlackElo "2387"]
[TimeControl "180+1"]
[EndTime "10:57:24 PDT"]
[Termination "Game drawn by repetition"]

1. e4 {[%clk 0:03:00.9]} 1... c6 {[%clk 0:02:45.1]} 2. d4 {[%clk 0:03:00]} 2...
d5 {[%clk 0:02:45.6]} 3. Nd2 {[%clk 0:03:00.4]} 3... dxe4 {[%clk 0:02:44.9]} 4.
Nxe4 {[%clk 0:03:01.3]} 4... Nf6 {[%clk 0:02:44.9]} 5. Nxf6+ {[%clk 0:03:01.4]}
5... exf6 {[%clk 0:02:45.8]} 6. c3 {[%clk 0:03:01.2]} 6... Bd6 {[%clk
0:02:45.7]} 7. Bd3 {[%clk 0:03:01.3]} 7... O-O {[%clk 0:02:45.6]} 8. Qc2 {[%clk
0:03:01.7]} 8... h6 {[%clk 0:02:45.5]} 9. Ne2 {[%clk 0:03:01.7]} 9... Qc7 {[%clk
0:02:45.4]} 10. Be3 {[%clk 0:03:01.2]} 10... c5 {[%clk 0:02:42.7]} 11. dxc5
{[%clk 0:02:52.4]} 11... Bxc5 {[%clk 0:02:42.6]} 12. Bxc5 {[%clk 0:02:52.5]}
12... Qxc5 {[%clk 0:02:42.3]} 13. O-O {[%clk 0:02:48.2]} 13... Nc6 {[%clk
0:02:30]} 14. b4 {[%clk 0:02:46.5]} 14... Qb6 {[%clk 0:02:27]} 15. a3 {[%clk
0:02:46.1]} 15... Ne5 {[%clk 0:02:22.7]} 16. Bh7+ {[%clk 0:02:31.4]} 16... Kh8
{[%clk 0:02:22.4]} 17. Be4 {[%clk 0:02:31.3]} 17... Be6 {[%clk 0:02:15]} 18. Nd4
{[%clk 0:02:26.4]} 18... Bc4 {[%clk 0:01:52.7]} 19. Rfe1 {[%clk 0:02:25.8]}
19... Rfd8 {[%clk 0:01:42.4]} 20. Re3 {[%clk 0:02:25.3]} 20... Rac8 {[%clk
0:01:26.9]} 21. Rae1 {[%clk 0:02:13.9]} 21... Bd5 {[%clk 0:00:43.8]} 22. Nf5
{[%clk 0:02:06]} 22... Bxe4 {[%clk 0:00:38.5]} 23. Qxe4 {[%clk 0:02:05.9]} 23...
Rd2 {[%clk 0:00:27.5]} 24. Qf4 {[%clk 0:01:47.2]} 24... Rcd8 {[%clk 0:00:20.4]}
25. Nxh6 {[%clk 0:01:42.6]} 25... gxh6 {[%clk 0:00:20]} 26. Qxh6+ {[%clk
0:01:41.5]} 26... Kg8 {[%clk 0:00:20.1]} 27. h4 {[%clk 0:01:14.4]} 27... Rd1
{[%clk 0:00:20]} 28. Rg3+ {[%clk 0:01:08.6]} 28... Ng6 {[%clk 0:00:19.6]} 29.
Rxg6+ {[%clk 0:01:08.4]} 29... fxg6 {[%clk 0:00:18.8]} 30. Qxg6+ {[%clk
0:01:08.7]} 30... Kf8 {[%clk 0:00:19.1]} 31. Qh6+ {[%clk 0:01:06.9]} 31... Kg8
{[%clk 0:00:18.3]} 32. Qg6+ {[%clk 0:01:06.6]} 32... Kf8 {[%clk 0:00:18.6]} 33.
Qh6+ {[%clk 0:01:01.6]} 33... Kg8 {[%clk 0:00:18.9]} 34. Qg6+ {[%clk 0:01:01.9]}
1/2-1/2

[Event "*** SCC Grand Prix: Titled Tuesday Blitz"]
[Site "Chess.com"]
[Date "2020.06.02"]
[Round "5"]
[White "StockholmMissile"]
[Black "Siniauski"]
[Result "0-1"]
[WhiteElo "2435"]
[BlackElo "2507"]
[TimeControl "180+1"]
[EndTime "10:57:24 PDT"]
[Termination "Siniauski won by checkmate"]

1. d4 {[%clk 0:03:00.9]} 1... Nf6 {[%clk 0:02:59.5]} 2. c4 {[%clk 0:03:00.3]}
2... e6 {[%clk 0:02:59.3]} 3. Nf3 {[%clk 0:03:00.1]} 3... b6 {[%clk 0:02:58.9]}
4. a3 {[%clk 0:02:59.7]} 4... Bb7 {[%clk 0:02:57.7]} 5. Nc3 {[%clk 0:02:59.4]}
5... Be7 {[%clk 0:02:49.9]} 6. d5 {[%clk 0:02:59]} 6... O-O {[%clk 0:02:47.2]}
7. g3 {[%clk 0:02:58.7]} 7... d6 {[%clk 0:02:45.7]} 8. dxe6 {[%clk 0:02:51.2]}
8... fxe6 {[%clk 0:02:45.3]} 9. Bg2 {[%clk 0:02:51.2]} 9... Nbd7 {[%clk
0:02:44.2]} 10. O-O {[%clk 0:02:50.8]} 10... e5 {[%clk 0:02:39.9]} 11. b4 {[%clk
0:02:40]} 11... h6 {[%clk 0:02:34.3]} 12. Nh4 {[%clk 0:02:33]} 12... Bxg2 {[%clk
0:02:33.1]} 13. Kxg2 {[%clk 0:02:33.9]} 13... Qe8 {[%clk 0:02:25.6]} 14. Nd5
{[%clk 0:02:30.9]} 14... Nxd5 {[%clk 0:02:14]} 15. Qxd5+ {[%clk 0:02:31.8]}
15... Kh8 {[%clk 0:02:07.9]} 16. Nf3 {[%clk 0:02:26.2]} 16... Nf6 {[%clk
0:02:08]} 17. Qe6 {[%clk 0:02:19.7]} 17... Qf7 {[%clk 0:02:06]} 18. Qxf7 {[%clk
0:02:17.1]} 18... Rxf7 {[%clk 0:02:06.9]} 19. Bb2 {[%clk 0:02:14.8]} 19... Raf8
{[%clk 0:02:05.8]} 20. Nh4 {[%clk 0:02:12.6]} 20... Kh7 {[%clk 0:02:01.5]} 21.
Rad1 {[%clk 0:02:12]} 21... Ng4 {[%clk 0:01:49.6]} 22. Nf3 {[%clk 0:01:53.8]}
22... e4 {[%clk 0:01:46.7]} 23. Nd4 {[%clk 0:01:51.8]} 23... Rxf2+ {[%clk
0:01:34.3]} 24. Rxf2 {[%clk 0:01:49.9]} 24... Rxf2+ {[%clk 0:01:24.9]} 25. Kg1
{[%clk 0:01:50.1]} 25... Rxh2 {[%clk 0:01:18.8]} 26. b5 {[%clk 0:01:49.3]} 26...
Bg5 {[%clk 0:01:15.9]} 27. Bc1 {[%clk 0:01:37.6]} 27... Bf6 {[%clk 0:01:09.6]}
28. Ne6 {[%clk 0:01:28]} 28... Rxe2 {[%clk 0:01:04.3]} 29. Nxc7 {[%clk
0:01:27.9]} 29... Ne5 {[%clk 0:00:53]} 30. Bf4 {[%clk 0:00:59.3]} 30... Nf3+
{[%clk 0:00:50.8]} 31. Kf1 {[%clk 0:00:59.5]} 31... Rh2 {[%clk 0:00:45.8]} 32.
Rxd6 {[%clk 0:00:57.2]} 32... Bd4 {[%clk 0:00:34]} 33. g4 {[%clk 0:00:46.2]}
33... Rf2# {[%clk 0:00:32.8]} 0-1

[Event "*** SCC Grand Prix: Titled Tuesday Blitz"]
[Site "Chess.com"]
[Date "2020.06.02"]
[Round "5"]
[White "Skatchkov_V"]
[Black "Orest_Vovk"]
[Result "1-0"]
[WhiteElo "2544"]
[BlackElo "2384"]
[TimeControl "180+1"]
[EndTime "10:57:32 PDT"]
[Termination "Skatchkov_V won by resignation"]

1. Nf3 {[%clk 0:03:00.9]} 1... Nf6 {[%clk 0:02:59.6]} 2. g3 {[%clk 0:02:59.6]}
2... b6 {[%clk 0:02:58.9]} 3. Bg2 {[%clk 0:02:58.8]} 3... Bb7 {[%clk 0:02:59.6]}
4. d4 {[%clk 0:02:58.8]} 4... e6 {[%clk 0:02:56.8]} 5. O-O {[%clk 0:02:57.2]}
5... d6 {[%clk 0:02:52.3]} 6. c4 {[%clk 0:02:56.6]} 6... Nbd7 {[%clk 0:02:52.2]}
7. Nc3 {[%clk 0:02:56.1]} 7... g6 {[%clk 0:02:52.2]} 8. Qc2 {[%clk 0:02:54.5]}
8... Bg7 {[%clk 0:02:52]} 9. e4 {[%clk 0:02:54.7]} 9... e5 {[%clk 0:02:48.3]}
10. d5 {[%clk 0:02:54.5]} 10... O-O {[%clk 0:02:46.5]} 11. h3 {[%clk 0:02:53.2]}
11... a5 {[%clk 0:02:44.1]} 12. Be3 {[%clk 0:02:47.1]} 12... Nc5 {[%clk
0:02:40.9]} 13. b3 {[%clk 0:02:37]} 13... h6 {[%clk 0:02:36.9]} 14. a3 {[%clk
0:02:36.3]} 14... Kh7 {[%clk 0:02:26]} 15. b4 {[%clk 0:02:35.9]} 15... Ncd7
{[%clk 0:02:23.2]} 16. Nd2 {[%clk 0:02:19.5]} 16... Nh5 {[%clk 0:02:04.9]} 17.
Rae1 {[%clk 0:01:52.6]} 17... axb4 {[%clk 0:02:02.8]} 18. axb4 {[%clk
0:01:52.1]} 18... Qe7 {[%clk 0:01:55.6]} 19. Nb5 {[%clk 0:01:48.5]} 19... c6
{[%clk 0:01:50.4]} 20. dxc6 {[%clk 0:01:45.3]} 20... Bxc6 {[%clk 0:01:50.1]} 21.
Nc7 {[%clk 0:01:41.7]} 21... Ra7 {[%clk 0:01:36.6]} 22. Nd5 {[%clk 0:01:40]}
22... Bxd5 {[%clk 0:01:36.4]} 23. cxd5 {[%clk 0:01:38.1]} 23... Rfa8 {[%clk
0:01:24.7]} 24. Nc4 {[%clk 0:01:34.7]} 24... Ra2 {[%clk 0:01:21.8]} 25. Qb3
{[%clk 0:01:33.9]} 25... b5 {[%clk 0:01:15.8]} 26. Na5 {[%clk 0:01:32.3]} 26...
Ra4 {[%clk 0:01:12.6]} 27. Rc1 {[%clk 0:01:31.2]} 27... Qd8 {[%clk 0:00:45.5]}
28. Rc6 {[%clk 0:01:30.2]} 28... Bf8 {[%clk 0:00:40.8]} 29. Rfc1 {[%clk
0:01:30]} 29... Ng7 {[%clk 0:00:27.3]} 30. Bf1 {[%clk 0:01:28.4]} 30... R8xa5
{[%clk 0:00:14.5]} 31. bxa5 {[%clk 0:01:29.3]} 31... Qxa5 {[%clk 0:00:14.5]} 32.
Qxb5 {[%clk 0:01:25.8]} 32... Qxb5 {[%clk 0:00:14]} 33. Bxb5 {[%clk 0:01:26.7]}
33... Rxe4 {[%clk 0:00:14.4]} 34. Rc8 {[%clk 0:01:25]} 34... Nf6 {[%clk
0:00:09.8]} 35. Rxf8 {[%clk 0:01:23.8]} 35... Nxd5 {[%clk 0:00:10]} 36. Bc6
{[%clk 0:01:22.4]} 36... Rxe3 {[%clk 0:00:06.2]} 37. fxe3 {[%clk 0:01:18.4]}
37... Nxe3 {[%clk 0:00:07.1]} 38. Rxf7 {[%clk 0:01:18.1]} 1-0

[Event "*** SCC Grand Prix: Titled Tuesday Blitz"]
[Site "Chess.com"]
[Date "2020.06.02"]
[Round "5"]
[White "Oglob71"]
[Black "saraswathii"]
[Result "1-0"]
[WhiteElo "2519"]
[BlackElo "2362"]
[TimeControl "180+1"]
[EndTime "10:57:37 PDT"]
[Termination "Oglob71 won by resignation"]

1. d4 {[%clk 0:03:00.9]} 1... Nf6 {[%clk 0:02:58.5]} 2. Nf3 {[%clk 0:03:01.4]}
2... d5 {[%clk 0:02:58.3]} 3. c4 {[%clk 0:03:01.6]} 3... c6 {[%clk 0:02:57.9]}
4. e3 {[%clk 0:03:01.5]} 4... Bf5 {[%clk 0:02:57.7]} 5. Nc3 {[%clk 0:03:01.3]}
5... e6 {[%clk 0:02:57.8]} 6. Nh4 {[%clk 0:03:01.8]} 6... Bg6 {[%clk 0:02:57.3]}
7. Be2 {[%clk 0:03:01.5]} 7... Nbd7 {[%clk 0:02:56.5]} 8. O-O {[%clk 0:03:00.7]}
8... Bd6 {[%clk 0:02:56.6]} 9. Qb3 {[%clk 0:02:58.8]} 9... Qc7 {[%clk
0:02:54.9]} 10. g3 {[%clk 0:02:58.9]} 10... O-O {[%clk 0:02:53.9]} 11. Nxg6
{[%clk 0:02:58.4]} 11... hxg6 {[%clk 0:02:53.4]} 12. Bf3 {[%clk 0:02:58.8]}
12... Rfe8 {[%clk 0:02:51.7]} 13. Bg2 {[%clk 0:02:57.1]} 13... dxc4 {[%clk
0:02:48.7]} 14. Qxc4 {[%clk 0:02:56.7]} 14... e5 {[%clk 0:02:49]} 15. Bd2 {[%clk
0:02:54.2]} 15... Nb6 {[%clk 0:02:47.5]} 16. Qb3 {[%clk 0:02:52.5]} 16... Rad8
{[%clk 0:02:45.9]} 17. Rad1 {[%clk 0:02:50.5]} 17... Qe7 {[%clk 0:02:33.5]} 18.
a4 {[%clk 0:02:49.2]} 18... e4 {[%clk 0:02:26.7]} 19. a5 {[%clk 0:02:45.4]}
19... Nbd5 {[%clk 0:02:26.6]} 20. Ra1 {[%clk 0:02:35.5]} 20... a6 {[%clk
0:02:18.9]} 21. Nxd5 {[%clk 0:02:24.6]} 21... cxd5 {[%clk 0:02:13.9]} 22. Rfc1
{[%clk 0:02:22.5]} 22... Rc8 {[%clk 0:02:07]} 23. Rxc8 {[%clk 0:02:08.1]} 23...
Rxc8 {[%clk 0:02:06.2]} 24. Rc1 {[%clk 0:02:08.6]} 24... Rxc1+ {[%clk
0:02:04.6]} 25. Bxc1 {[%clk 0:02:08.9]} 25... Bb4 {[%clk 0:02:01.2]} 26. Qa4
{[%clk 0:02:06]} 26... Be1 {[%clk 0:01:59.1]} 27. Kf1 {[%clk 0:01:55.2]} 27...
Qb4 {[%clk 0:01:57.9]} 28. Qd1 {[%clk 0:01:54.7]} 28... Bxf2 {[%clk 0:01:48.4]}
29. Kxf2 {[%clk 0:01:50.7]} 29... Qxa5 {[%clk 0:01:48.3]} 30. h3 {[%clk
0:01:47.9]} 30... Qc7 {[%clk 0:01:46.5]} 31. Qe1 {[%clk 0:01:30.2]} 31... Nh5
{[%clk 0:01:45.3]} 32. g4 {[%clk 0:01:29.5]} 32... Nf6 {[%clk 0:01:43.6]} 33.
Qc3 {[%clk 0:01:28.4]} 33... Qd6 {[%clk 0:01:40.7]} 34. Bd2 {[%clk 0:01:27.7]}
34... Nd7 {[%clk 0:01:40]} 35. Be1 {[%clk 0:01:23.3]} 35... Nb6 {[%clk
0:01:38.8]} 36. Qc5 {[%clk 0:01:21.4]} 36... Qxc5 {[%clk 0:01:27.9]} 37. dxc5
{[%clk 0:01:21.1]} 37... Na4 {[%clk 0:01:28.2]} 38. b4 {[%clk 0:01:17.6]} 38...
a5 {[%clk 0:01:28.4]} 39. bxa5 {[%clk 0:01:16.4]} 39... Nxc5 {[%clk 0:01:28.1]}
40. Ke2 {[%clk 0:01:16.6]} 40... Nd3 {[%clk 0:01:27.3]} 41. Bc3 {[%clk
0:01:15.4]} 41... f5 {[%clk 0:01:25.3]} 42. Kd2 {[%clk 0:01:13]} 42... f4 {[%clk
0:01:20.2]} 43. Bf1 {[%clk 0:01:02.5]} 43... fxe3+ {[%clk 0:01:18.2]} 44. Kxe3
{[%clk 0:01:01.8]} 44... Nc5 {[%clk 0:01:08.6]} 45. Kd4 {[%clk 0:00:57.3]} 45...
Na4 {[%clk 0:01:08.1]} 46. Bb4 {[%clk 0:00:52.5]} 1-0

[Event "*** SCC Grand Prix: Titled Tuesday Blitz"]
[Site "Chess.com"]
[Date "2020.06.02"]
[Round "5"]
[White "Justinz"]
[Black "guillembaches"]
[Result "1-0"]
[WhiteElo "2318"]
[BlackElo "2424"]
[TimeControl "180+1"]
[EndTime "10:57:37 PDT"]
[Termination "Justinz won by checkmate"]

1. e4 {[%clk 0:03:00.9]} 1... c5 {[%clk 0:02:58.9]} 2. Nf3 {[%clk 0:03:00.7]}
2... d6 {[%clk 0:02:58.8]} 3. d4 {[%clk 0:02:59.8]} 3... cxd4 {[%clk 0:02:59.7]}
4. Nxd4 {[%clk 0:03:00]} 4... Nf6 {[%clk 0:03:00.2]} 5. Nc3 {[%clk 0:02:59.8]}
5... Nc6 {[%clk 0:03:00.7]} 6. Bg5 {[%clk 0:02:58.7]} 6... e6 {[%clk 0:03:00.8]}
7. Qd2 {[%clk 0:02:58.5]} 7... h6 {[%clk 0:03:01.3]} 8. Bxf6 {[%clk 0:02:46.5]}
8... gxf6 {[%clk 0:03:02.2]} 9. O-O-O {[%clk 0:02:43.5]} 9... a6 {[%clk
0:03:02.6]} 10. f4 {[%clk 0:02:39.7]} 10... Bd7 {[%clk 0:03:02.4]} 11. Be2
{[%clk 0:02:37.9]} 11... h5 {[%clk 0:03:01.1]} 12. Rhf1 {[%clk 0:02:35.9]} 12...
Qb6 {[%clk 0:02:54.8]} 13. Nb3 {[%clk 0:02:26.5]} 13... O-O-O {[%clk 0:02:50.5]}
14. Kb1 {[%clk 0:02:25.1]} 14... Be7 {[%clk 0:02:47.5]} 15. Rf3 {[%clk 0:02:21]}
15... Rdg8 {[%clk 0:02:43.1]} 16. Bf1 {[%clk 0:02:19.3]} 16... Kb8 {[%clk
0:02:43]} 17. Rh3 {[%clk 0:02:05.6]} 17... h4 {[%clk 0:02:38.6]} 18. Qe1 {[%clk
0:02:03.6]} 18... Rg4 {[%clk 0:02:27.6]} 19. g3 {[%clk 0:01:54.7]} 19... Qg1
{[%clk 0:02:03.1]} 20. Be2 {[%clk 0:01:45.3]} 20... Qxe1 {[%clk 0:01:56.5]} 21.
Rxe1 {[%clk 0:01:46.2]} 21... Rgg8 {[%clk 0:01:53.7]} 22. gxh4 {[%clk
0:01:45.5]} 22... f5 {[%clk 0:01:41.9]} 23. exf5 {[%clk 0:01:43]} 23... d5
{[%clk 0:01:37.1]} 24. fxe6 {[%clk 0:01:35.3]} 24... fxe6 {[%clk 0:01:32.3]} 25.
h5 {[%clk 0:01:30.2]} 25... Bf6 {[%clk 0:01:24.2]} 26. Rg3 {[%clk 0:01:28]}
26... Rf8 {[%clk 0:01:19.5]} 27. Bd1 {[%clk 0:01:25.9]} 27... Bh4 {[%clk
0:01:13.7]} 28. Nc5 {[%clk 0:01:25.5]} 28... Bc8 {[%clk 0:01:10.8]} 29. Nxe6
{[%clk 0:01:21.1]} 29... Bxe6 {[%clk 0:01:10.2]} 30. Rxe6 {[%clk 0:01:19.8]}
30... Rxf4 {[%clk 0:01:04.5]} 31. Rd3 {[%clk 0:01:14.4]} 31... d4 {[%clk
0:00:58.2]} 32. Ne2 {[%clk 0:01:14.3]} 32... Rf1 {[%clk 0:00:51.2]} 33. Nxd4
{[%clk 0:01:14.2]} 33... Nxd4 {[%clk 0:00:47.7]} 34. Rxd4 {[%clk 0:01:14.1]}
34... Rxh5 {[%clk 0:00:46.1]} 35. a4 {[%clk 0:01:11.5]} 35... Bf2 {[%clk
0:00:31.8]} 36. Rd7 {[%clk 0:01:07.7]} 36... Rxh2 {[%clk 0:00:26.2]} 37. Ka2
{[%clk 0:01:07.5]} 37... Rhh1 {[%clk 0:00:18.6]} 38. Bf3 {[%clk 0:01:04.8]}
38... Bc5 {[%clk 0:00:15.7]} 39. Rxb7+ {[%clk 0:01:04.1]} 39... Kc8 {[%clk
0:00:16.1]} 40. Re8# {[%clk 0:01:03.5]} 1-0